[Event "Kupreichik Memorial Rapid 2019"]
[Site "Minsk"]
[Date "2019.08.17"]
[Round "10.23"]
[White "Stanishevskij, Aleksandr"]
[Black "Spizharny, Mikhail"]
[Result "0-1"]
[ECO "B40"]
[WhiteElo "1830"]
[BlackElo "2079"]
[Annotator "NA"]
[PlyCount "146"]
[EventDate "2019.08.15"]
[EventType "swiss"]
[EventCountry "BLR"]
[SourceTitle "playchess.com"]
[Source "ChessBase"]
[SourceQuality "1"]
[TimeControl "900+10"]

1. e4 {[%emt 0:00:00]} c5 {[%emt 0:00:00]} 2. Nf3 {[%emt 0:00:08]} e6 {[%emt 0:00:00]} 3. d3 {[%emt 0:00:07]} Nc6 {[%emt 0:00:00]} 4. g3 {[%emt 0:00:06]} Nf6 {[%emt 0:00:00]} 5. Bg2 {[%emt 0:00:06]} d5 {[%emt 0:00:00]} 6. Nbd2 {[%emt 0:00:40]} g6 {[%emt 0:00:00]} 7. O-O {[%emt 0:00:25]} Bg7 {[%emt 0:00:02]} 8. Re1 {[%emt 0:00:13]} O-O {[%emt 0:00:05]} 9. Qe2 {[%emt 0:00:47]} b6 {[%emt 0:01:21]} 10. Nf1 {[%emt 0:00:32]} e5 {[%emt 0:00:57]} 11. exd5 {[%emt 0:02:15]} Nxd5 {[%emt 0:00:05]} 12. Ne3 {[%emt 0:00:16]} Nxe3 {[%emt 0:00:24]} 13. Bxe3 {[%emt 0:00:30]} Be6 {[%emt 0:00:13]} 14. Qd2 {[%emt 0:00:50]} Re8 {[%emt 0:03:07]} 15. Bh6 {[%emt 0:00:23]} Bh8 {[%emt 0:00:20]} 16. h4 {[%emt 0:00:36]} Qd7 {[%emt 0:01:22]} 17. a3 {[%emt 0:00:46]} Rad8 {[%emt 0:00:45]} 18. h5 {[%emt 0:01:35]} c4 {[%emt 0:02:09]} 19. hxg6 {[%emt 0:00:22]} hxg6 {[%emt 0:00:12]} 20. dxc4 {[%emt 0:02:18]} Bxc4 {[%emt 0:00:33]} 21. Qxd7 {[%emt 0:00:43]} Rxd7 {[%emt 0:00:02]} 22. Rad1 {[%emt 0:00:19]} Red8 {[%emt 0:00:49]} 23. Rxd7 {[%emt 0:00:17]} Rxd7 {[%emt 0:00:02]} 24. c3 {[%emt 0:00:25]} f6 {[%emt 0:01:46]} 25. Bc1 {[%emt 0:00:39]} Bg7 {[%emt 0:00:37]} 26. Nd2 {[%emt 0:00:38]} Bd5 {[%emt 0:00:04]} 27. Bh3 {[%emt 0:00:23]} Rd8 {[%emt 0:00:29]} 28. Nf1 {[%emt 0:00:14]} Bf3 {[%emt 0:00:51]} 29. Bg2 {[%emt 0:00:30]} Bxg2 30. Kxg2 {[%emt 0:00:01]} Na5 {[%emt 0:00:45]} 31. Re4 {[%emt 0:01:26]} Kf7 {[%emt 0:01:22]} 32. Ra4 {[%emt 0:00:29]} Rd7 {[%emt 0:00:24]} 33. Be3 {[%emt 0:00:15]} Ke6 {[%emt 0:00:10]} 34. Rh4 {[%emt 0:00:16]} Nb7 {[%emt 0:00:25]} 35. Kf3 {[%emt 0:00:05]} Nd6 {[%emt 0:00:05]} 36. Ke2 {[%emt 0:00:05]} Rc7 {[%emt 0:00:42]} 37. Nd2 {[%emt 0:00:03]} Rc8 {[%emt 0:00:10]} 38. Rh7 {[%emt 0:00:02]} Rg8 {[%emt 0:00:24]} 39. Rh4 {[%emt 0:00:13]} Nf5 {[%emt 0:00:15]} 40. Ra4 {[%emt 0:00:03]} Nxe3 {[%emt 0:00:08]} 41. Kxe3 {[%emt 0:00:01]} a5 {[%emt 0:00:15]} 42. Rh4 {[%emt 0:00:09]} Rd8 {[%emt 0:00:26]} 43. Rh7 {[%emt 0:00:04]} Kf7 {[%emt 0:00:00]} 44. Nc4 {[%emt 0:00:08]} Rb8 {[%emt 0:00:17]} 45. Rh1 {[%emt 0:00:05]} Ke6 {[%emt 0:00:12]} 46. Rh7 {[%emt 0:00:02]} Kf7 {[%emt 0:00:13]} 47. Rh1 {[%emt 0:00:02]} Bf8 {[%emt 0:00:06]} 48. Rh7+ {[%emt 0:00:07]} Bg7 {[%emt 0:00:03]} 49. Rh1 {[%emt 0:00:02]} a4 {[%emt 0:00:19]} 50. Rd1 {[%emt 0:00:03]} Ke7 {[%emt 0:00:03]} 51. Ke2 {[%emt 0:00:14]} b5 {[%emt 0:00:07]} 52. Ne3 {[%emt 0:00:01]} Ke6 {[%emt 0:00:11]} 53. Rh1 {[%emt 0:00:11]} f5 {[%emt 0:00:07]} 54. Rh7 {[%emt 0:00:04]} Rb7 {[%emt 0:00:03]} 55. Rh1 {[%emt 0:00:04]} Rd7 {[%emt 0:00:01]} 56. Rh4 {[%emt 0:00:08]} e4 {[%emt 0:00:20]} 57. Rh7 {[%emt 0:00:11]} Kf7 {[%emt 0:00:25]} 58. Ng2 {[%emt 0:00:04]} Rd8 {[%emt 0:00:10]} 59. Nf4 {[%emt 0:00:02]} Rh8 {[%emt 0:00:10]} 60. Rxh8 {[%emt 0:00:06]} Bxh8 {[%emt 0:00:01]} 61. Nd5 {[%emt 0:00:09]} Be5 {[%emt 0:00:08]} 62. Ne3 {[%emt 0:00:12]} Ke6 {[%emt 0:00:02]} 63. Nc2 {[%emt 0:00:02]} g5 {[%emt 0:00:21]} 64. Ke3 {[%emt 0:00:04]} Kd5 {[%emt 0:00:11]} 65. Kd2 {[%emt 0:00:36]} Kc4 {[%emt 0:00:21]} 66. Nb4 {[%emt 0:02:19]} Kb3 {[%emt 0:00:09]} 67. Kc1 {[%emt 0:00:07]} f4 {[%emt 0:00:11]} 68. g4 {[%emt 0:00:16]} f3 {[%emt 0:00:12]} 69. Nd5 {[%emt 0:00:05]} Bd6 {[%emt 0:00:09]} 70. Kb1 {[%emt 0:00:20]} Bc5 {[%emt 0:00:06]} 71. Nc7 {[%emt 0:00:11]} e3 {[%emt 0:00:08]} 72. Ne6 {[%emt 0:00:25]} exf2 {[%emt 0:00:09]} 73. Nxc5+ {[%emt 0:00:02]} Kc4 {[%emt 0:00:00]} 0-1

[Event "Kupreichik Memorial Rapid 2019"]
[Site "Minsk"]
[Date "2019.08.17"]
[Round "10.24"]
[White "Shaban, Aliaksandra"]
[Black "Kolosovskaya, Olga"]
[Result "1/2-1/2"]
[ECO "D05"]
[WhiteElo "1734"]
[BlackElo "1719"]
[Annotator "NA"]
[PlyCount "251"]
[EventDate "2019.08.15"]
[EventType "swiss"]
[EventCountry "BLR"]
[SourceTitle "playchess.com"]
[Source "ChessBase"]
[SourceQuality "1"]
[TimeControl "900+10"]

1. d4 {[%emt 0:00:00]} d5 {[%emt 0:00:00]} 2. Nf3 {[%emt 0:00:00]} Nf6 {[%emt 0:00:00]} 3. e3 {[%emt 0:00:13]} e6 {[%emt 0:00:00]} 4. Bd3 {[%emt 0:00:15]} Be7 {[%emt 0:00:00]} 5. O-O {[%emt 0:00:16]} O-O {[%emt 0:00:00]} 6. Nbd2 {[%emt 0:00:15]} b6 {[%emt 0:00:28]} 7. b3 {[%emt 0:00:19]} Bb7 {[%emt 0:00:01]} 8. Bb2 {[%emt 0:00:20]} Nbd7 {[%emt 0:00:07]} 9. Ne5 {[%emt 0:00:38]} c5 {[%emt 0:02:31]} 10. c4 {[%emt 0:00:57]} cxd4 {[%emt 0:00:38]} 11. exd4 {[%emt 0:00:11]} dxc4 {[%emt 0:00:13]} 12. Ndxc4 {[%emt 0:00:13]} Rc8 {[%emt 0:04:25]} 13. Qe2 {[%emt 0:00:42]} Nd5 {[%emt 0:00:26]} 14. Qg4 {[%emt 0:01:41]} N7f6 {[%emt 0:00:26]} 15. Qd1 {[%emt 0:01:24]} Nf4 {[%emt 0:00:19]} 16. f3 {[%emt 0:00:14]} Nxd3 {[%emt 0:00:13]} 17. Qxd3 {[%emt 0:00:14]} Nd5 {[%emt 0:00:45]} 18. Rfe1 {[%emt 0:00:57]} Bh4 {[%emt 0:00:24]} 19. g3 {[%emt 0:01:32]} Be7 {[%emt 0:00:02]} 20. a3 {[%emt 0:00:29]} b5 {[%emt 0:00:52]} 21. Ne3 {[%emt 0:00:37]} Nxe3 {[%emt 0:00:03]} 22. Rxe3 {[%emt 0:00:05]} Qd5 {[%emt 0:00:11]} 23. Rf1 {[%emt 0:01:12]} Rc7 {[%emt 0:00:16]} 24. Ng4 {[%emt 0:00:53]} Bd6 {[%emt 0:01:24]} 25. Nf2 {[%emt 0:01:09]} Rfc8 {[%emt 0:00:10]} 26. Ne4 {[%emt 0:00:26]} Be7 {[%emt 0:00:18]} 27. Rf2 {[%emt 0:00:48]} a6 {[%emt 0:00:11]} 28. Kg2 {[%emt 0:00:05]} Ba8 {[%emt 0:00:41]} 29. h4 {[%emt 0:01:05]} Bf8 {[%emt 0:00:47]} 30. Ng5 {[%emt 0:00:18]} Qf5 {[%emt 0:00:40]} 31. Ne4 {[%emt 0:00:44]} Be7 {[%emt 0:00:15]} 32. b4 {[%emt 0:00:33]} Qd5 {[%emt 0:01:29]} 33. Nc5 {[%emt 0:00:18]} Bxc5 {[%emt 0:00:04]} 34. dxc5 {[%emt 0:00:02]} Qxd3 {[%emt 0:00:06]} 35. Rxd3 {[%emt 0:00:01]} Bd5 {[%emt 0:00:07]} 36. Be5 {[%emt 0:00:13]} Ra7 {[%emt 0:00:13]} 37. Kh2 {[%emt 0:00:47]} a5 {[%emt 0:00:02]} 38. Bc3 {[%emt 0:00:07]} axb4 {[%emt 0:00:05]} 39. Bxb4 {[%emt 0:00:01]} Rc6 {[%emt 0:00:31]} 40. f4 {[%emt 0:00:06]} f5 {[%emt 0:00:04]} 41. Re3 {[%emt 0:01:01]} Kf7 {[%emt 0:00:07]} 42. Rd2 {[%emt 0:00:03]} Ra8 {[%emt 0:00:11]} 43. Kg1 {[%emt 0:00:11]} h6 {[%emt 0:00:04]} 44. Kf2 {[%emt 0:00:03]} Rg8 {[%emt 0:00:11]} 45. h5 {[%emt 0:00:13]} Ra8 {[%emt 0:00:39]} 46. Ke1 {[%emt 0:00:07]} Ra7 {[%emt 0:00:30]} 47. Rh2 {[%emt 0:00:18]} Ke7 {[%emt 0:00:15]} 48. Rh4 {[%emt 0:00:02]} Ra8 {[%emt 0:00:17]} 49. Kd2 {[%emt 0:00:15]} Bc4 {[%emt 0:00:16]} 50. Kc3 {[%emt 0:00:07]} Bd5 {[%emt 0:00:07]} 51. Kb2 {[%emt 0:00:04]} Rf8 {[%emt 0:00:18]} 52. g4 {[%emt 0:00:25]} Rf7 {[%emt 0:00:14]} 53. gxf5 {[%emt 0:00:17]} Rxf5 {[%emt 0:00:02]} 54. Rg3 {[%emt 0:00:05]} Kf8 {[%emt 0:00:36]} 55. Bc3 {[%emt 0:00:03]} Rf7 {[%emt 0:00:06]} 56. Rhg4 {[%emt 0:00:02]} Rcc7 {[%emt 0:00:06]} 57. Be5 {[%emt 0:00:04]} Rcd7 {[%emt 0:00:15]} 58. Rg6 {[%emt 0:00:11]} Be4 {[%emt 0:00:02]} 59. Rxe6 {[%emt 0:00:21]} Rd2+ {[%emt 0:00:01]} 60. Kc1 {[%emt 0:00:17]} Rc2+ {[%emt 0:00:02]} 61. Kd1 {[%emt 0:00:01]} Rd7+ {[%emt 0:00:13]} 62. Rd6 {[%emt 0:00:17]} Rxd6+ {[%emt 0:00:12]} 63. Bxd6+ {[%emt 0:00:05]} Kf7 {[%emt 0:00:08]} 64. Re3 {[%emt 0:00:06]} Bf5 {[%emt 0:00:04]} 65. Re7+ {[%emt 0:00:05]} Kg8 {[%emt 0:00:03]} 66. Rb7 {[%emt 0:00:20]} Ra2 {[%emt 0:00:48]} 67. c6 {[%emt 0:00:09]} Bg4+ {[%emt 0:00:03]} 68. Kc1 {[%emt 0:00:06]} Bxh5 {[%emt 0:00:10]} 69. c7 {[%emt 0:00:04]} Bg4 {[%emt 0:00:01]} 70. Rb8+ {[%emt 0:00:10]} Kh7 {[%emt 0:00:02]} 71. c8=Q {[%emt 0:00:10]} Bxc8 {[%emt 0:00:02]} 72. Rxc8 {[%emt 0:00:01]} Ra1+ {[%emt 0:00:13]} 73. Kd2 {[%emt 0:00:06]} Rf1 {[%emt 0:00:06]} 74. Ke2 {[%emt 0:00:03]} Rb1 {[%emt 0:00:04]} 75. Rc7 {[%emt 0:00:03]} Rb2+ {[%emt 0:00:07]} 76. Kf3 {[%emt 0:00:02]} Rb3+ {[%emt 0:00:01]} 77. Kg2 {[%emt 0:00:04]} Rb2+ {[%emt 0:00:09]} 78. Kf3 {[%emt 0:00:02]} Rb3+ {[%emt 0:00:01]} 79. Ke4 {[%emt 0:00:01]} h5 {[%emt 0:00:09]} 80. Kf5 {[%emt 0:00:11]} h4 {[%emt 0:00:07]} 81. Kg4 {[%emt 0:00:06]} h3 {[%emt 0:00:02]} 82. f5 {[%emt 0:00:02]} Kg8 {[%emt 0:00:15]} 83. Rc2 {[%emt 0:00:09]} Kf7 {[%emt 0:00:07]} 84. Bc5 {[%emt 0:00:08]} g6 {[%emt 0:00:05]} 85. fxg6+ {[%emt 0:00:14]} Kxg6 {[%emt 0:00:01]} 86. Bb4 {[%emt 0:00:05]} Kf6 {[%emt 0:00:04]} 87. Kf4 {[%emt 0:00:09]} Ke6 {[%emt 0:00:06]} 88. Ke4 {[%emt 0:00:04]} Kf6 {[%emt 0:00:03]} 89. Kf4 {[%emt 0:00:10]} Ke6 {[%emt 0:00:01]} 90. Rd2 {[%emt 0:00:10]} Kf6 {[%emt 0:00:29]} 91. Bc5 {[%emt 0:00:12]} Kg6 {[%emt 0:00:05]} 92. Kg4 {[%emt 0:00:08]} Kf6 {[%emt 0:00:06]} 93. Re2 {[%emt 0:00:07]} Rd3 {[%emt 0:00:11]} 94. Bb4 {[%emt 0:00:05]} Rb3 {[%emt 0:00:07]} 95. Bf8 {[%emt 0:00:10]} Kf7 {[%emt 0:00:05]} 96. Bd6 {[%emt 0:00:03]} Kf6 {[%emt 0:00:02]} 97. Bc5 {[%emt 0:00:13]} Rd3 {[%emt 0:00:05]} 98. Rb2 {[%emt 0:00:16]} Ke5 {[%emt 0:01:09]} 99. Bf8 {[%emt 0:00:14]} Kd5 {[%emt 0:00:23]} 100. Rxb5+ {[%emt 0:00:06]} Kc4 {[%emt 0:00:02]} 101. Rh5 {[%emt 0:00:13]} Kb3 {[%emt 0:00:27]} 102. Kf4 {[%emt 0:00:10]} Ka4 {[%emt 0:00:09]} 103. Ke4 {[%emt 0:00:03]} Rg3 {[%emt 0:00:08]} 104. Kd4 {[%emt 0:00:07]} Rg4+ {[%emt 0:00:02]} 105. Kc3 {[%emt 0:00:17]} Rg3+ {[%emt 0:00:02]} 106. Kc4 {[%emt 0:00:04]} Rg4+ {[%emt 0:00:02]} 107. Kd3 {[%emt 0:00:03]} Rg3+ {[%emt 0:00:02]} 108. Ke4 {[%emt 0:00:03]} Rc3 {[%emt 0:00:20]} 109. Bd6 {[%emt 0:00:13]} Rb3 {[%emt 0:00:22]} 110. Kd4 {[%emt 0:00:06]} Rf3 {[%emt 0:00:21]} 111. Kc4 {[%emt 0:00:06]} Re3 {[%emt 0:00:18]} 112. Kd4 {[%emt 0:00:37]} Rf3 {[%emt 0:00:04]} 113. Rh8 {[%emt 0:00:22]} Ka5 {[%emt 0:00:17]} 114. Kd5 {[%emt 0:00:11]} Rd3+ {[%emt 0:00:07]} 115. Kc6 {[%emt 0:00:03]} Ka4 {[%emt 0:00:06]} 116. Rb8 {[%emt 0:00:27]} Rc3+ {[%emt 0:00:06]} 117. Kd7 {[%emt 0:00:15]} Rd3 {[%emt 0:00:03]} 118. Ke6 {[%emt 0:00:06]} Rd2 {[%emt 0:00:32]} 119. Rh8 {[%emt 0:00:16]} Rd3 {[%emt 0:00:31]} 120. Rh4+ {[%emt 0:00:18]} Kb5 {[%emt 0:00:08]} 121. a4+ {[%emt 0:00:14]} Ka6 {[%emt 0:00:05]} 122. Kd7 {[%emt 0:00:10]} Ka5 {[%emt 0:00:16]} 123. Kc6 {[%emt 0:00:12]} Rc3+ {[%emt 0:00:24]} 124. Kb7 {[%emt 0:00:26]} Rb3+ {[%emt 0:00:03]} 125. Ka7 {[%emt 0:00:32]} Rb7+ 126. Kxb7 1/2-1/2

[Event "Kupreichik Memorial Rapid 2019"]
[Site "Minsk"]
[Date "2019.08.17"]
[Round "10.25"]
[White "Drobyshevsky, Vasily"]
[Black "Leinov, Roman"]
[Result "0-1"]
[ECO "D94"]
[WhiteElo "1441"]
[BlackElo "2189"]
[Annotator "NA"]
[PlyCount "110"]
[EventDate "2019.08.15"]
[EventType "swiss"]
[EventCountry "BLR"]
[SourceTitle "playchess.com"]
[Source "ChessBase"]
[SourceQuality "1"]
[TimeControl "900+10"]

1. c4 {[%emt 0:00:00]} Nf6 {[%emt 0:00:02]} 2. Nc3 {[%emt 0:00:00]} g6 {[%emt 0:00:02]} 3. d4 {[%emt 0:00:00]} d5 {[%emt 0:00:05]} 4. e3 {[%emt 0:00:00]} Bg7 {[%emt 0:00:02]} 5. Nf3 {[%emt 0:00:00]} O-O {[%emt 0:00:02]} 6. Be2 {[%emt 0:00:01]} b6 {[%emt 0:00:10]} 7. O-O {[%emt 0:00:07]} Bb7 {[%emt 0:00:02]} 8. Ne5 {[%emt 0:00:12]} Nbd7 {[%emt 0:00:18]} 9. f4 {[%emt 0:00:02]} c5 {[%emt 0:00:11]} 10. cxd5 {[%emt 0:00:45]} cxd4 {[%emt 0:02:11]} 11. exd4 {[%emt 0:00:08]} Nxd5 {[%emt 0:00:07]} 12. Bf3 {[%emt 0:00:10]} N7f6 {[%emt 0:00:15]} 13. Bd2 {[%emt 0:01:25]} Rc8 {[%emt 0:02:30]} 14. Rc1 {[%emt 0:00:04]} e6 {[%emt 0:02:20]} 15. Qe2 {[%emt 0:05:18]} Nxc3 {[%emt 0:00:56]} 16. bxc3 {[%emt 0:00:14]} Bxf3 {[%emt 0:00:07]} 17. Qxf3 {[%emt 0:00:10]} Qd6 {[%emt 0:00:14]} 18. Qd3 {[%emt 0:01:49]} Rfd8 {[%emt 0:00:24]} 19. Be3 {[%emt 0:00:46]} Nd5 {[%emt 0:00:20]} 20. Rc2 {[%emt 0:02:20]} Qa3 {[%emt 0:00:34]} 21. Rfc1 {[%emt 0:00:11]} f6 {[%emt 0:03:48]} 22. Nf3 {[%emt 0:03:11]} Nb4 {[%emt 0:00:04]} 23. Qd2 {[%emt 0:00:17]} Nxc2 {[%emt 0:00:06]} 24. Qxc2 {[%emt 0:00:04]} b5 {[%emt 0:00:23]} 25. Bd2 {[%emt 0:00:08]} a6 {[%emt 0:00:05]} 26. Rb1 {[%emt 0:00:02]} Qd6 {[%emt 0:00:08]} 27. g3 {[%emt 0:00:08]} Qd5 {[%emt 0:00:02]} 28. Kf2 {[%emt 0:00:10]} Rc4 {[%emt 0:00:05]} 29. Qb3 {[%emt 0:00:12]} Ra4 {[%emt 0:00:09]} 30. Qxd5 {[%emt 0:00:10]} exd5 {[%emt 0:00:07]} 31. Rb2 {[%emt 0:00:04]} Kf7 {[%emt 0:00:16]} 32. Ne1 {[%emt 0:00:12]} Ke6 {[%emt 0:00:09]} 33. Nd3 {[%emt 0:00:02]} Bf8 {[%emt 0:00:02]} 34. Be1 {[%emt 0:00:09]} Kd7 {[%emt 0:00:07]} 35. h3 {[%emt 0:00:11]} Re8 {[%emt 0:00:03]} 36. Bd2 {[%emt 0:00:09]} Kc6 {[%emt 0:00:08]} 37. Rc2 {[%emt 0:00:14]} Bd6 {[%emt 0:00:06]} 38. Kf3 {[%emt 0:00:03]} Kd7 {[%emt 0:00:10]} 39. Be1 {[%emt 0:00:03]} Ra3 {[%emt 0:00:05]} 40. Bd2 {[%emt 0:00:10]} b4 {[%emt 0:00:10]} 41. Kf2 {[%emt 0:00:48]} Rc8 {[%emt 0:00:02]} 42. Ke2 {[%emt 0:00:18]} bxc3 {[%emt 0:00:04]} 43. Bc1 {[%emt 0:00:02]} Ra4 {[%emt 0:00:06]} 44. Be3 {[%emt 0:00:14]} Rac4 {[%emt 0:00:16]} 45. Nc1 {[%emt 0:00:10]} a5 {[%emt 0:00:44]} 46. Nb3 {[%emt 0:00:13]} a4 {[%emt 0:00:11]} 47. Nc1 {[%emt 0:00:29]} Rb8 {[%emt 0:00:19]} 48. Kd3 {[%emt 0:00:04]} Rb2 {[%emt 0:00:19]} 49. Rxc3 {[%emt 0:00:07]} Rxc3+ {[%emt 0:00:10]} 50. Kxc3 {[%emt 0:00:02]} Rg2 {[%emt 0:00:03]} 51. g4 {[%emt 0:00:09]} Rg3 {[%emt 0:00:02]} 52. Kd2 {[%emt 0:00:02]} Rxh3 {[%emt 0:00:05]} 53. Ne2 {[%emt 0:00:08]} h5 {[%emt 0:00:15]} 54. gxh5 {[%emt 0:00:02]} gxh5 {[%emt 0:00:03]} 55. Nc3 {[%emt 0:00:04]} Bb4 {[%emt 0:00:04]} 0-1

[Event "Kupreichik Memorial Rapid 2019"]
[Site "Minsk"]
[Date "2019.08.17"]
[Round "10.26"]
[White "Zhukovskij, Viktor"]
[Black "Nikolaev, Dmitry"]
[Result "1-0"]
[ECO "C11"]
[WhiteElo "2028"]
[BlackElo "1677"]
[Annotator "NA"]
[PlyCount "135"]
[EventDate "2019.08.15"]
[EventType "swiss"]
[EventCountry "BLR"]
[SourceTitle "playchess.com"]
[Source "ChessBase"]
[SourceQuality "1"]
[TimeControl "900+10"]

1. e4 {[%emt 0:00:00]} e6 {[%emt 0:00:00]} 2. d4 {[%emt 0:00:00]} d5 {[%emt 0:00:00]} 3. Nc3 {[%emt 0:00:00]} Nf6 {[%emt 0:00:00]} 4. e5 {[%emt 0:00:00]} Nfd7 {[%emt 0:00:00]} 5. f4 {[%emt 0:00:00]} c5 {[%emt 0:00:00]} 6. Nf3 {[%emt 0:00:00]} Nc6 {[%emt 0:00:02]} 7. Be3 {[%emt 0:00:02]} a6 {[%emt 0:00:46]} 8. Qd2 {[%emt 0:00:06]} Be7 {[%emt 0:00:12]} 9. Be2 {[%emt 0:00:49]} b5 {[%emt 0:00:24]} 10. a3 {[%emt 0:00:10]} Bb7 {[%emt 0:00:23]} 11. O-O {[%emt 0:00:09]} cxd4 {[%emt 0:02:19]} 12. Nxd4 {[%emt 0:00:04]} O-O {[%emt 0:00:04]} 13. Bd3 {[%emt 0:01:02]} Nc5 {[%emt 0:00:51]} 14. Nxc6 {[%emt 0:03:27]} Bxc6 {[%emt 0:00:02]} 15. Bd4 {[%emt 0:00:08]} Nxd3 {[%emt 0:00:13]} 16. Qxd3 {[%emt 0:00:23]} f5 {[%emt 0:00:20]} 17. Ne2 {[%emt 0:00:33]} Rc8 {[%emt 0:00:38]} 18. c3 {[%emt 0:00:12]} Bd7 {[%emt 0:00:59]} 19. Qe3 {[%emt 0:00:10]} Qa5 {[%emt 0:01:30]} 20. b4 {[%emt 0:01:27]} Qa4 {[%emt 0:00:52]} 21. Nc1 {[%emt 0:00:20]} Qc2 {[%emt 0:02:19]} 22. Nd3 {[%emt 0:00:27]} Rc6 {[%emt 0:01:05]} 23. Rfc1 {[%emt 0:00:17]} Qb3 {[%emt 0:00:57]} 24. Bc5 {[%emt 0:00:28]} Re8 {[%emt 0:00:22]} 25. Bxe7 {[%emt 0:02:24]} Rxe7 {[%emt 0:00:01]} 26. Nc5 {[%emt 0:00:03]} Qc4 {[%emt 0:00:11]} 27. Rd1 {[%emt 0:00:27]} Rxc5 {[%emt 0:00:58]} 28. Qxc5 {[%emt 0:01:39]} Qxc5+ {[%emt 0:00:01]} 29. bxc5 {[%emt 0:00:02]} Be8 {[%emt 0:00:02]} 30. Kf2 {[%emt 0:02:25]} Rc7 {[%emt 0:00:01]} 31. Ke3 {[%emt 0:00:01]} Rxc5 {[%emt 0:00:03]} 32. Kd3 {[%emt 0:00:13]} Kf7 {[%emt 0:00:46]} 33. Rdb1 {[%emt 0:00:19]} Rc4 {[%emt 0:00:05]} 34. Rb4 {[%emt 0:00:10]} Rc7 {[%emt 0:01:01]} 35. h3 {[%emt 0:00:05]} Kg6 {[%emt 0:00:29]} 36. g4 {[%emt 0:00:15]} h5 {[%emt 0:01:03]} 37. Rg1 {[%emt 0:00:02]} hxg4 {[%emt 0:00:18]} 38. hxg4 {[%emt 0:00:02]} fxg4 {[%emt 0:00:31]} 39. Rxg4+ {[%emt 0:00:04]} Kh6 {[%emt 0:00:11]} 40. Rg5 {[%emt 0:00:51]} Rf7 {[%emt 0:00:28]} 41. Ke3 {[%emt 0:00:30]} Rc7 {[%emt 0:00:04]} 42. Kd2 {[%emt 0:00:14]} Rf7 {[%emt 0:00:08]} 43. Rg1 {[%emt 0:00:16]} Rf5 {[%emt 0:00:41]} 44. Ke3 {[%emt 0:00:14]} Rh5 {[%emt 0:00:01]} 45. Kd4 {[%emt 0:00:28]} Rh3 {[%emt 0:00:08]} 46. Rc1 {[%emt 0:00:01]} Rf3 {[%emt 0:00:09]} 47. Kc5 {[%emt 0:00:01]} a5 {[%emt 0:00:36]} 48. Rd4 {[%emt 0:00:08]} Kg6 {[%emt 0:00:01]} 49. Kd6 {[%emt 0:00:40]} Kf7 {[%emt 0:00:26]} 50. Rc2 {[%emt 0:00:29]} a4 {[%emt 0:00:12]} 51. Rc1 {[%emt 0:00:14]} Rf2 {[%emt 0:00:03]} 52. Rcd1 {[%emt 0:00:30]} g6 {[%emt 0:00:11]} 53. Rh1 {[%emt 0:00:02]} Ra2 {[%emt 0:00:08]} 54. Rh7+ {[%emt 0:00:06]} Kg8 {[%emt 0:00:03]} 55. Re7 {[%emt 0:00:16]} Bf7 {[%emt 0:00:09]} 56. Rb4 {[%emt 0:00:04]} Rxa3 {[%emt 0:00:01]} 57. Rxb5 {[%emt 0:00:02]} Rxc3 {[%emt 0:00:38]} 58. Rb8+ {[%emt 0:00:02]} Kg7 {[%emt 0:00:02]} 59. Rbb7 {[%emt 0:00:02]} g5 {[%emt 0:00:29]} 60. Rxf7+ {[%emt 0:00:15]} Kg6 {[%emt 0:00:01]} 61. Rf6+ {[%emt 0:00:06]} Kh5 {[%emt 0:00:01]} 62. fxg5 {[%emt 0:00:05]} Kxg5 {[%emt 0:00:03]} 63. Rg7+ {[%emt 0:00:04]} Kh5 {[%emt 0:00:03]} 64. Rf1 {[%emt 0:00:06]} Kh6 {[%emt 0:00:14]} 65. Rg2 {[%emt 0:00:05]} Rh3 {[%emt 0:00:04]} 66. Kxe6 {[%emt 0:00:10]} d4 {[%emt 0:00:02]} 67. Rf4 {[%emt 0:00:13]} d3 {[%emt 0:00:19]} 68. Rxa4 {[%emt 0:00:02]} 1-0

[Event "Kupreichik Memorial Rapid 2019"]
[Site "Minsk"]
[Date "2019.08.17"]
[Round "10.27"]
[White "Talma, Sergei"]
[Black "Novik, Nikita"]
[Result "0-1"]
[ECO "C10"]
[WhiteElo "1882"]
[BlackElo "1355"]
[Annotator "NA"]
[PlyCount "72"]
[EventDate "2019.08.15"]
[EventType "swiss"]
[EventCountry "BLR"]
[SourceTitle "playchess.com"]
[Source "ChessBase"]
[SourceQuality "1"]
[TimeControl "900+10"]

1. d4 {[%emt 0:00:00]} d5 {[%emt 0:00:00]} 2. Nc3 {[%emt 0:00:00]} e6 {[%emt 0:00:00]} 3. e4 {[%emt 0:00:00]} dxe4 {[%emt 0:00:00]} 4. Nxe4 {[%emt 0:00:00]} Nc6 {[%emt 0:00:00]} 5. Nf3 {[%emt 0:00:09]} Be7 {[%emt 0:00:02]} 6. Bd3 {[%emt 0:00:43]} Nf6 {[%emt 0:00:02]} 7. Nxf6+ {[%emt 0:00:02]} Bxf6 {[%emt 0:00:00]} 8. c3 {[%emt 0:00:01]} b6 {[%emt 0:00:11]} 9. Be4 {[%emt 0:01:18]} Bb7 {[%emt 0:00:53]} 10. Qa4 {[%emt 0:00:30]} Qd7 {[%emt 0:00:05]} 11. Bf4 {[%emt 0:00:29]} Na5 {[%emt 0:01:39]} 12. Qc2 {[%emt 0:03:05]} Bxe4 {[%emt 0:01:07]} 13. Qxe4 {[%emt 0:00:02]} Qd5 {[%emt 0:00:03]} 14. Qxd5 {[%emt 0:00:04]} exd5 {[%emt 0:00:05]} 15. Bxc7 {[%emt 0:00:10]} Kd7 {[%emt 0:00:18]} 16. Be5 {[%emt 0:00:45]} Nc4 {[%emt 0:01:12]} 17. Bxf6 {[%emt 0:00:27]} gxf6 {[%emt 0:00:03]} 18. O-O-O {[%emt 0:00:18]} Nd6 {[%emt 0:00:30]} 19. Nd2 {[%emt 0:00:13]} a5 {[%emt 0:00:20]} 20. Kc2 {[%emt 0:00:35]} a4 {[%emt 0:00:22]} 21. a3 {[%emt 0:00:11]} Rac8 {[%emt 0:00:34]} 22. Kd3 {[%emt 0:00:38]} f5 {[%emt 0:01:06]} 23. g3 {[%emt 0:00:54]} Rhe8 {[%emt 0:00:46]} 24. f3 {[%emt 0:01:05]} Re6 {[%emt 0:00:31]} 25. Rde1 {[%emt 0:00:10]} Rce8 {[%emt 0:00:07]} 26. Rxe6 {[%emt 0:00:01]} Rxe6 {[%emt 0:00:15]} 27. Nf1 {[%emt 0:00:57]} Nc4 {[%emt 0:00:11]} 28. g4 {[%emt 0:01:00]} f4 {[%emt 0:01:17]} 29. h4 {[%emt 0:00:18]} Nxb2+ {[%emt 0:00:13]} 30. Kc2 {[%emt 0:00:12]} Nc4 {[%emt 0:00:04]} 31. Nh2 {[%emt 0:00:34]} Nxa3+ {[%emt 0:00:24]} 32. Kc1 {[%emt 0:00:08]} Nc4 {[%emt 0:00:09]} 33. g5 {[%emt 0:00:01]} a3 {[%emt 0:00:31]} 34. Ng4 {[%emt 0:00:22]} a2 {[%emt 0:00:41]} 35. Kc2 {[%emt 0:00:09]} Re2+ {[%emt 0:00:02]} 36. Kb3 {[%emt 0:00:20]} Rb2+ {[%emt 0:00:02]} 0-1

[Event "Kupreichik Memorial Rapid 2019"]
[Site "Minsk"]
[Date "2019.08.17"]
[Round "10.28"]
[White "Masjuk, Vladimir"]
[Black "Pogorelov, Aleksey"]
[Result "1-0"]
[ECO "B01"]
[WhiteElo "1900"]
[BlackElo "1548"]
[Annotator "NA"]
[PlyCount "49"]
[EventDate "2019.08.15"]
[EventType "swiss"]
[EventCountry "BLR"]
[SourceTitle "playchess.com"]
[Source "ChessBase"]
[SourceQuality "1"]
[TimeControl "900+10"]

1. e4 {[%emt 0:00:00]} d5 {[%emt 0:00:00]} 2. exd5 {[%emt 0:00:00]} Qxd5 {[%emt 0:00:00]} 3. Nc3 {[%emt 0:00:00]} Qa5 {[%emt 0:00:00]} 4. d4 {[%emt 0:00:00]} Nf6 {[%emt 0:00:00]} 5. Nf3 {[%emt 0:00:00]} Bg4 {[%emt 0:00:00]} 6. Be2 {[%emt 0:00:00]} Nc6 {[%emt 0:00:04]} 7. O-O {[%emt 0:00:04]} O-O-O {[%emt 0:00:06]} 8. Be3 {[%emt 0:00:02]} e6 {[%emt 0:00:10]} 9. h3 {[%emt 0:00:05]} h5 {[%emt 0:00:28]} 10. a3 {[%emt 0:00:16]} Nd5 {[%emt 0:01:44]} 11. Ne4 {[%emt 0:00:47]} Bxf3 {[%emt 0:01:20]} 12. Bxf3 {[%emt 0:00:02]} Nxe3 {[%emt 0:00:34]} 13. fxe3 {[%emt 0:00:02]} Be7 {[%emt 0:00:18]} 14. c4 {[%emt 0:00:35]} Qf5 {[%emt 0:01:23]} 15. b4 Ne5 {[%emt 0:00:42]} 16. Nc3 {[%emt 0:00:46]} Qg5 {[%emt 0:00:48]} 17. Qe2 Nxc4 {[%emt 0:01:40]} 18. Qxc4 {[%emt 0:00:39]} Qxe3+ {[%emt 0:00:02]} 19. Kh1 {[%emt 0:00:07]} Rxd4 {[%emt 0:00:11]} 20. Qb5 {[%emt 0:01:29]} Bd6 {[%emt 0:05:22]} 21. Bxb7+ {[%emt 0:00:54]} Kd8 {[%emt 0:00:54]} 22. Rxf7 {[%emt 0:00:39]} Bf4 {[%emt 0:01:23]} 23. Ne2 {[%emt 0:01:19]} Rd2 {[%emt 0:01:27]} 24. Nxf4 {[%emt 0:00:14]} Qd4 {[%emt 0:00:13]} 25. Nxe6# {[%emt 0:00:09]} 1-0